bitfinex/quotes_ETHUSD_20250126
["timestamp","ask_amount","ask_price","bid_price","bid_amount"]
[1737929246577,0.03792728,3295.9,3295.6,0.8287]
[1737929246779,0.03792728,3295.9,3294.7,0.60092505]
[1737929246780,3.03433,3295.7,3295.2,0.7863]
[1737929247085,3.03435,3295.6,3295.2,0.7863]
[1737929248086,0.8316,3295.8,3295.2,0.7863]
[1737929248240,3.03483,3295.1,3294.8,0.7863]
[1737929248446,0.8316,3295.3,3294.3,0.7863]
[1737929248739,3.03513,3294.8,3294.3,0.7863]
[1737929249344,3.03513,3294.8,3294.4,0.05386336]
[1737929249691,3.03499,3294.9,3294.4,0.05386336]
[1737929251765,3.07302073,3294.8,3294.4,0.05386336]
[1737929251953,0.8078,3294.7,3294.4,0.05386336]
[1737929252159,3.07326497,3294.6,3294.0,3.79696]
[1737929252391,3.03532,3294.6,3294.5,0.05426583]
[1737929252553,3.03532,3294.6,3294.0,0.7612]
[1737929252752,3.03532,3294.6,3294.5,0.05426583]
[1737929252990,3.03532,3294.6,3294.0,0.7612]
[1737929253193,3.03541,3294.5,3294.0,0.7612]
[1737929256426,3.03532,3294.6,3294.1,0.0550241]
[1737929260398,0.687822,3294.6,3294.1,0.0550241]
[1737929260605,6.84343,3294.2,3294.1,0.0550241]
[1737929260818,3.03621,3293.6,3292.9,3.03683]
[1737929261019,3.03621,3293.6,3292.7,3.7982]
[1737929261020,0.03795612,3293.5,3292.7,0.7612]
[1737929261320,3.03665,3293.1,3292.7,0.7612]
[1737929261578,3.03637,3293.4,3292.8,0.05320354]
[1737929261579,3.03645,3293.4,3292.8,0.05320354]
[1737929261723,3.03662,3293.2,3292.7,0.7612]
[1737929262028,3.03648,3293.3,3292.9,0.05320354]
[1737929262324,3.03648,3293.3,3293.0,0.05320354]
[1737929262526,0.8078,3293.1,3292.3,0.8547842]
[1737929262818,3.0371,3292.7,3292.3,0.8547842]
[1737929263025,3.03683,3292.9,3292.3,0.8547842]
[1737929263026,3.03711,3292.6,3292.3,0.8547842]
[1737929263201,3.03697,3292.8,3292.3,0.8547842]
[1737929263520,3.03704,3292.7,3292.3,0.0935842]
[1737929263710,3.03724,3292.5,3292.3,0.0935842]
[1737929264341,3.03712,3292.6,3292.3,0.0935842]
[1737929266092,3.03722,3292.5,3292.3,0.0935842]
[1737929266336,6.88305929,3292.4,3292.3,0.0935842]
[1737929266658,7.83711793,3292.4,3292.3,0.0935842]
[1737929268300,6.86864,3291.7,3291.6,0.18946674]
[1737929268700,3.8307,3291.7,3290.3,0.7752]
[1737929268903,3.03812,3291.5,3290.3,0.7752]
[1737929269139,3.03878,3290.8,3290.3,0.7752]
[1737929269340,3.0389,3290.7,3290.3,0.7752]
[1737929269541,0.7771,3291.2,3290.3,0.7252]
[1737929269542,3.0,3291.1,3290.3,0.7252]
[1737929269838,3.0,3290.8,3290.3,0.7252]
[1737929270225,3.0,3290.8,3290.2,3.03931]
[1737929270226,3.0,3290.8,3289.9,3.03959]
[1737929270431,3.64265,3290.8,3290.1,3.03941]
[1737929270636,3.0384,3291.3,3289.9,3.0396]
[1737929270810,3.03852,3291.1,3290.3,3.03921]
[1737929271012,0.30761102,3291.4,3289.7,3.01323145]
[1737929271231,3.03863,3291.0,3290.4,0.04637855]
[1737929271423,3.03863,3291.0,3290.2,3.03924]
[1737929271618,3.03863,3291.0,3290.5,0.04637855]
[1737929271619,3.0,3290.9,3290.5,0.04637855]
[1737929271820,3.03879,3290.8,3290.0,3.03949]
[1737929272023,0.81509067,3290.7,3289.7,0.01323145]
[1737929272246,3.03918,3290.4,3290.1,0.04637855]
[1737929272539,0.607828,3290.4,3290.2,0.04483288]
[1737929272721,3.81566,3291.1,3290.1,3.03942]
[1737929272920,0.7771,3291.1,3290.3,0.04483288]
[1737929273118,0.7771,3291.1,3289.7,0.01323145]
[1737929273119,0.7771,3291.5,3290.9,3.03867]
[1737929273346,6.03792,3291.8,3291.1,3.03841]
[1737929273541,0.985283,3291.7,3291.1,3.03841]
[1737929273742,0.985283,3291.7,3291.2,0.04483288]
[1737929273973,4.023223,3291.7,3291.2,0.04483288]
[1737929274127,4.023223,3291.7,3290.9,3.03867]
[1737929274333,0.985283,3291.7,3291.3,0.04577939]
[1737929274527,3.03786,3291.8,3291.0,3.03854]
[1737929274728,3.03786,3291.8,3291.4,0.04577939]
[1737929274931,0.7771,3291.9,3291.4,3.03818]
[1737929275137,3.7771,3292.3,3291.6,3.03803]
[1737929275460,3.7771,3292.3,3291.7,3.03791]
[1737929275672,0.78064379,3292.2,3291.7,3.08345969]
[1737929276167,0.78064379,3292.2,3291.7,0.04554969]
[1737929276548,0.03797563,3292.1,3291.7,0.04554969]
[1737929276780,0.03797563,3292.1,3291.1,3.82699]
[1737929276781,3.0378,3291.9,3291.2,3.03838]
[1737929276976,3.0378,3291.9,3291.8,0.04554969]
[1737929277147,3.645341,3291.9,3291.2,3.03838]
[1737929277346,3.07586005,3291.8,3291.1,0.7885]
[1737929277547,3.0,3291.6,3291.1,0.7885]
[1737929277853,0.03798008,3291.5,3291.1,0.7885]
[1737929278059,3.0,3291.8,3291.1,0.7885]
[1737929278409,0.6645341,3291.7,3291.3,3.03831]
[1737929278694,0.607541,3291.9,3291.2,3.03832]
[1737929278866,0.607541,3291.9,3291.3,3.03829]
[1737929279977,3.0,3291.8,3291.3,3.03829]
[1737929280179,0.7771,3292.3,3291.7,3.03786]
[1737929280379,0.7771,3292.3,3291.1,3.82695]
[1737929280590,0.7771,3292.3,3291.8,3.03784]
[1737929281296,3.03749,3292.2,3291.5,3.03804]
[1737929281479,3.03749,3292.2,3291.3,3.03831]
[1737929281480,3.03759,3292.1,3291.3,3.03831]
[1737929281680,0.03797614,3292.0,3291.4,3.0382]
[1737929281990,3.03757,3292.1,3291.4,3.0382]
[1737929282193,0.381459,3292.2,3291.3,3.03828]
[1737929282496,3.03773,3292.0,3291.3,3.0383]
[1737929283892,3.03762,3292.1,3291.5,3.03806]
[1737929284196,3.03782,3291.9,3291.3,3.0383]
[1737929285297,3.03762,3292.1,3291.5,3.03811]
[1737929286261,3.03762,3292.1,3291.6,0.04574167]
[1737929286474,0.303762,3292.0,3291.6,0.04574167]
[1737929286893,3.81104,3291.7,3291.6,0.04574167]
[1737929287197,3.81104,3291.7,3289.0,3.3069149]
[1737929287198,0.7731,3290.9,3290.1,0.8086]
[1737929287367,0.7731,3290.9,3290.3,3.03923]
[1737929287562,3.0,3290.9,3290.3,3.03923]
[1737929288117,3.0,3290.9,3290.1,0.8086]
[1737929288271,3.603868,3290.9,3290.3,3.0392]
[1737929288664,3.603868,3290.9,3290.4,3.03911]
[1737929289777,3.03878,3290.8,3290.2,3.03927]
[1737929289976,3.03878,3290.8,3290.1,0.8086]
[1737929290188,3.03889,3290.7,3290.1,0.8086]
[1737929290416,3.81279,3289.8,3289.7,0.01323145]
[1737929290597,6.81279,3289.8,3289.7,0.01323145]
[1737929291267,1.822,3289.6,3287.5,0.09377304]
[1737929291468,0.7731,3288.8,3287.5,0.09377304]
[1737929291681,3.0,3288.5,3287.5,0.09377304]
[1737929292086,6.08283,3288.0,3287.5,0.09377304]
[1737929292341,6.04173,3287.6,3287.5,3.04e-06]
[1737929292483,3.0,3287.5,3287.0,8.19901396]
[1737929292686,6.04219,3287.1,3287.0,8.09901396]
[1737929293820,6.04219,3287.1,3287.0,7.81547333]
[1737929294226,3.04219,3287.1,3287.0,7.81547333]
[1737929294585,3.04219,3287.1,3287.0,7.84273801]
[1737929294788,3.9931,3287.6,3287.0,7.84273801]
[1737929294789,0.7731,3287.6,3287.0,7.84273801]
[1737929294985,3.04136,3288.0,3287.0,8.57701181]
[1737929295431,3.04165,3287.7,3287.0,8.57701181]
[1737929295639,3.04127,3288.1,3287.0,8.57701181]
[1737929295803,3.04145,3287.9,3287.0,7.79273801]
[1737929296001,6.08328,3287.7,3287.0,7.79273801]
[1737929296333,3.03803005,3287.8,3287.0,7.79273801]
[1737929296512,3.04206,3287.3,3287.0,7.79273801]
[1737929296709,0.03803005,3287.5,3287.0,7.51629178]
[1737929296908,3.04275,3286.5,3286.4,0.00938218]
[1737929297236,3.04339,3285.8,3285.7,0.1758164]
[1737929298210,6.81649,3285.8,3285.7,0.1758164]
[1737929298538,7.80627119,3285.8,3285.7,0.1758164]
[1737929298895,0.7731,3286.8,3285.7,0.1758164]
[1737929299096,3.0,3286.8,3286.0,3.04318]
[1737929299301,6.04339,3285.8,3285.7,0.1758164]
[1737929299819,0.7731,3286.2,3285.7,0.1758164]
[1737929300018,0.7731,3286.2,3285.7,0.17442145]
[1737929300420,3.04339,3285.8,3285.7,0.17442145]
[1737929300637,0.7731,3286.2,3285.7,0.17442145]
[1737929300638,3.81616,3286.2,3285.7,0.17442145]
[1737929300805,0.03804777,3286.4,3285.7,0.17442145]
[1737929301004,3.04304,3286.2,3285.7,0.17442145]
[1737929301242,3.04312,3286.1,3285.7,0.17442145]
[1737929301439,3.04304,3286.2,3285.7,0.17442145]
[1737929301941,3.04339,3285.9,3285.7,0.17442145]
[1737929302431,3.37079462,3286.2,3285.7,0.17442145]
[1737929302633,3.04323,3286.0,3285.7,0.17442145]
[1737929303252,7.63183562,3286.2,3285.7,0.17442145]
[1737929303551,6.41382462,3286.2,3285.7,0.17442145]
[1737929303731,3.04315,3286.1,3285.7,0.17442145]
[1737929304045,3.04321,3286.0,3285.7,0.17442145]
[1737929304344,4.55554947,3285.9,3285.7,0.17442145]
[1737929304734,4.55554947,3285.9,3285.5,0.96272185]
[1737929304910,4.55554947,3285.9,3285.4,0.25136458]
[1737929305449,4.55554947,3285.9,3285.5,3.04364]
[1737929305744,4.55554947,3285.9,3285.6,3.04358]
[1737929305936,4.217918,3286.5,3285.6,3.04356]
[1737929305937,4.55554947,3285.8,3285.6,3.04356]
[1737929306142,4.55554947,3285.8,3285.4,3.29512458]
[1737929306143,4.55554947,3285.8,3285.7,3.04349]
[1737929306321,4.55554947,3285.8,3285.4,0.25136458]
[1737929306511,0.45555495,3285.7,3285.2,3.04389]
[1737929306716,4.55554947,3285.8,3285.2,3.04389]
[1737929307144,4.55554947,3285.8,3285.0,2.86551601]
[1737929307361,7.59896947,3285.8,3285.0,2.86551601]
[1737929307667,4.55554947,3285.8,3285.0,2.86551601]
[1737929307815,6.09883005,3285.9,3285.1,3.04398]
[1737929308262,3.05544005,3285.9,3285.3,3.04377]
[1737929308551,3.05544005,3285.9,3285.8,3.04339]
[1737929308757,3.05544005,3285.9,3285.6,3.04353]
[1737929309250,3.05544005,3285.9,3285.4,3.04372]
[1737929309432,3.05544005,3285.9,3285.3,3.04376]
[1737929309632,3.05544005,3285.9,3284.6,3.0]
[1737929309633,0.34358833,3285.8,3285.0,3.04409]
[1737929309839,3.0438,3285.4,3284.6,3.04443]
[1737929310012,0.0380546,3285.3,3284.6,3.04443]
[1737929310213,3.04405,3285.1,3284.4,3.04469]
[1737929310441,3.04431,3284.9,3284.1,3.04489]
[1737929310640,3.04405,3285.1,3284.3,3.04476]
[1737929310915,6.04403,3285.2,3284.4,3.04467]
[1737929311225,0.8183,3285.1,3283.9,0.7654]
[1737929311424,0.8183,3285.1,3284.0,3.04506]
[1737929311425,3.04441,3284.8,3284.0,3.04506]
[1737929311750,3.04424,3284.9,3284.2,3.04486]
[1737929311950,3.0,3285.0,3284.5,3.04457]
[1737929312152,0.8183,3285.1,3283.6,0.55]
[1737929312342,3.0,3285.3,3284.7,3.04439]
[1737929312551,0.604377,3285.2,3284.7,3.04439]
[1737929312713,0.8183,3285.5,3284.5,3.04459]
[1737929312714,6.04382,3285.4,3284.8,0.02983514]
[1737929313049,3.0,3285.6,3285.1,3.04402]
[1737929313252,3.0,3285.7,3285.1,3.04397]
[1737929313421,3.0,3285.9,3285.2,0.02976464]
[1737929313617,3.0,3285.7,3285.0,3.04412]
[1737929313819,3.65165307,3285.7,3285.3,0.02976464]
[1737929314029,3.04384,3285.4,3284.6,3.0445]
[1737929314217,3.04384,3285.4,3284.8,3.04431]
[1737929314932,3.0,3285.5,3284.8,3.04431]
[1737929315252,6.04368,3285.5,3284.8,3.04431]
[1737929315449,0.908726,3285.4,3284.8,3.04431]
[1737929315652,0.908726,3285.4,3284.4,0.7654]
[1737929315946,0.908726,3285.4,3284.4,3.81009]
[1737929315947,0.03805407,3285.4,3284.4,3.81009]
[1737929316150,3.04416,3285.0,3284.4,3.81009]
[1737929316352,3.04416,3285.0,3284.5,0.0286832]
[1737929316726,3.04403,3285.2,3284.5,0.0286832]
[1737929317115,3.04414,3285.0,3284.5,0.0286832]
[1737929317319,3.04424,3284.9,3284.5,0.0286832]
[1737929317745,3.04451,3284.6,3284.5,0.0286832]
[1737929318052,3.04432,3284.8,3284.0,3.79891]
[1737929318252,3.04442,3284.7,3284.5,0.0286832]
[1737929318415,3.04442,3284.7,3284.0,0.7539]
[1737929318755,0.908866,3284.7,3284.0,0.7539]
[1737929318937,3.04451,3284.6,3284.1,0.0286832]
[1737929319155,3.04468,3284.5,3283.8,3.04518]
[1737929319356,3.04468,3284.5,3284.2,0.0286832]
[1737929319694,3.04468,3284.5,3283.9,3.04515]
[1737929319979,3.0,3284.5,3283.6,3.64770718]
[1737929320174,3.0,3284.5,3283.9,3.04512]
[1737929320317,3.0,3284.6,3283.8,3.04524]
[1737929320753,0.8236,3284.8,3283.8,3.04518]
[1737929320919,0.304414,3285.0,3283.7,0.7539]
[1737929321125,3.86761,3285.2,3284.3,3.04474]
[1737929321457,3.04405,3285.1,3284.1,3.04495]
[1737929321767,3.04423,3284.9,3283.7,0.7539]
[1737929321947,3.04449,3284.7,3283.9,3.04514]
[1737929322460,3.04439,3284.8,3284.0,3.04504]
[1737929322647,0.608863,3284.7,3284.0,3.04504]
[1737929322957,3.04406,3285.1,3284.4,3.04468]
[1737929323536,3.04419,3285.0,3284.2,3.04479]
[1737929323733,3.86757,3285.2,3284.5,3.04459]
[1737929324251,3.86757,3285.2,3284.5,2.99459]
[1737929324650,0.8236,3285.2,3284.5,2.99459]
[1737929324861,0.38236,3285.1,3284.6,3.04448]
[1737929325569,0.38236,3285.1,3284.3,3.04476]
[1737929325750,0.38236,3285.1,3284.6,3.04448]
[1737929326463,0.38236,3285.1,3284.7,3.0444]
[1737929326629,0.38236,3285.1,3284.5,3.04456]
[1737929326630,0.38236,3285.1,3284.8,3.04432]
[1737929327142,0.38236,3285.1,3284.8,2.99432]
[1737929327853,0.8309,3284.1,3283.3,3.0497872]
[1737929328051,0.03807226,3284.0,3283.3,0.0040872]
[1737929328237,6.87593,3284.1,3283.3,0.0040872]
[1737929328558,3.04509,3284.0,3283.2,2.9998572]
[1737929328961,3.04509,3284.0,3283.3,3.04566]
[1737929329192,1.817984,3284.1,3283.4,3.04555]
[1737929329373,0.8259,3284.1,3283.5,3.04552]
[1737929330742,0.8259,3284.1,3283.5,3.0455]
[1737929331043,3.87088,3284.1,3283.5,3.0455]
[1737929331634,3.04517,3283.9,3283.3,3.04564]
[1737929331838,3.04517,3283.9,3282.7,3.04627]
[1737929331839,3.04561,3283.5,3282.6,3.04635]
[1737929332037,0.8194,3283.3,3282.7,3.04619]
[1737929332232,0.609095,3283.5,3282.9,3.046]
[1737929332432,3.80524,3283.7,3282.7,3.04621]
[1737929332433,3.04549,3283.6,3282.7,3.04621]
[1737929332658,3.04549,3283.6,3282.5,3.84603]
[1737929332880,3.04596,3283.1,3282.5,0.7996]
[1737929333059,3.04601,3283.0,3282.5,0.7996]
[1737929333259,0.6182974,3282.6,3282.5,1.20087549]
[1737929333461,3.04596,3283.1,3282.5,1.20087549]
[1737929333836,3.04573,3283.3,3282.5,1.20087549]
[1737929334042,3.04582,3283.2,3282.6,3.04628]
[1737929334251,3.04598,3283.1,3282.5,3.04643]
[1737929334453,3.04578,3283.3,3282.5,3.04645]
[1737929334855,3.04578,3283.3,3282.6,3.0463]
[1737929335175,3.66719091,3283.3,3282.7,3.04626]
[1737929335377,0.62141091,3283.3,3282.9,3.04604]
[1737929335551,0.62141091,3283.3,3283.0,3.04597]
[1737929335966,0.62141091,3283.3,3282.9,3.04604]
[1737929336561,0.62141091,3283.3,3282.7,3.04626]
[1737929336777,0.62141091,3283.3,3282.4,0.1665349]
[1737929337015,0.7599,3283.7,3283.2,3.04575]
[1737929337180,0.8144,3284.2,3283.7,3.04527]
[1737929337347,3.85934,3284.2,3283.5,3.04548]
[1737929337542,3.730904,3284.1,3283.5,3.04548]
[1737929337742,3.730904,3284.1,3283.4,3.0456]
[1737929337946,0.685934,3284.1,3283.5,3.04546]
[1737929338604,3.730924,3284.1,3283.5,3.04546]
[1737929338804,3.730924,3284.1,3283.3,3.04569]
[1737929338805,0.685934,3284.1,3283.3,3.04569]
[1737929338964,3.4996014,3284.0,3283.3,3.04569]
[1737929339164,0.4545214,3284.0,3283.5,3.04551]
[1737929339411,0.8144,3283.1,3282.4,3.2130549]
[1737929339571,0.03808291,3283.0,3282.4,0.1665349]
[1737929339751,3.04628,3282.7,3282.4,0.1665349]
[1737929340103,3.08445672,3282.6,3282.4,0.1665349]
[1737929340301,3.04645,3282.5,3282.4,0.1665349]
[1737929340533,4.47394067,3282.5,3282.4,0.1665349]
[1737929340666,3.04607,3283.0,3282.4,0.1665349]
[1737929341019,3.0,3283.0,3282.4,3.2130749]
[1737929341217,3.04606,3283.0,3282.4,0.1665349]
[1737929341792,0.8144,3283.1,3282.5,3.04636]
[1737929342099,0.8144,3283.1,3282.6,3.04633]
[1737929342708,3.0,3283.4,3282.7,3.04625]
[1737929342869,3.05544005,3283.8,3283.2,3.04577]
[1737929343067,3.05544005,3283.8,3283.3,3.04568]
[1737929343269,3.05544005,3283.8,3282.7,3.84707]
[1737929343465,3.05544005,3283.8,3283.7,3.04534]
[1737929343713,3.05544005,3283.8,3283.2,3.04577]
[1737929344074,3.05544005,3283.8,3282.8,0.44730105]
[1737929344075,2.95544005,3283.8,3282.9,0.8008]
[1737929344475,0.8144,3284.7,3284.2,3.04485]
[1737929344726,0.8144,3284.7,3283.8,0.8008]
[1737929344929,0.8144,3285.2,3284.8,3.04428]
[1737929345069,0.8144,3285.2,3283.9,0.384614]
[1737929345070,0.8144,3285.2,3283.9,3.429704]
[1737929345269,0.8144,3285.2,3284.7,3.04435]
[1737929345674,0.8144,3285.2,3284.8,3.04431]
[1737929345872,0.8144,3285.2,3284.0,3.04506]
[1737929345873,0.8144,3285.6,3285.0,3.0441]
[1737929346072,0.38144,3285.5,3285.2,3.04392]
[1737929346274,0.38144,3285.5,3285.4,3.04376]
[1737929346527,0.61334551,3285.9,3285.4,3.04376]
[1737929346528,0.61334551,3285.9,3285.4,3.04373]
[1737929346674,0.784,3286.0,3285.5,3.04366]
[1737929347035,0.784,3286.0,3285.4,3.04372]
[1737929347372,0.784,3286.0,3285.8,3.04331]
[1737929347373,4.3771837,3286.0,3285.8,3.04331]
[1737929347567,3.5931837,3286.0,3285.9,3.0433]
[1737929347811,3.95250207,3286.0,3285.9,3.0433]
[1737929348323,3.95250207,3286.0,3285.7,3.04346]
[1737929348531,3.95250207,3286.0,3285.9,3.0433]
[1737929348827,3.04352,3285.7,3284.1,3.04497]
[1737929348972,0.03805268,3285.6,3284.9,3.04414]
[1737929349426,0.34620695,3285.6,3284.9,3.04414]
[1737929349838,0.30815427,3285.6,3285.0,3.04412]
[1737929350688,3.04341,3285.8,3285.0,3.04412]
[1737929351318,3.784,3285.9,3285.1,3.04396]
[1737929351893,0.784,3285.9,3285.6,3.0435]
[1737929352123,0.7749,3286.4,3285.6,3.0435]
[1737929352358,0.7749,3286.4,3285.8,3.04339]
[1737929352652,0.7749,3286.4,3285.6,3.0435]
[1737929352817,0.03804403,3286.3,3285.6,3.0435]
[1737929353249,0.03804403,3286.3,3284.8,0.7933]
[1737929353250,0.7749,3286.4,3285.7,3.04342]
[1737929353568,3.10581126,3286.0,3285.7,3.04342]
[1737929353860,3.41639239,3286.0,3285.7,3.04342]
[1737929354873,3.41639239,3286.0,3285.9,3.0433]
[1737929355034,3.10581126,3286.0,3285.9,3.0433]
[1737929357131,0.8106,3287.3,3286.5,3.04275]
[1737929357132,1.30489117,3286.6,3286.5,3.04275]
[1737929358889,1.30489117,3286.6,3286.1,3.04309]
[1737929359041,1.30489117,3286.6,3285.6,0.8218]
[1737929359241,1.30489117,3286.6,3286.4,3.04277]
[1737929359438,0.8106,3286.5,3284.6,0.8218]
[1737929359640,0.51154912,3286.4,3285.8,3.04338]
[1737929359859,0.8106,3286.5,3286.0,3.04318]
[1737929360527,0.8106,3286.5,3285.8,3.04338]
[1737929360729,0.8106,3286.5,3286.1,3.04308]
[1737929360926,3.0,3287.2,3285.5,0.8218]
[1737929361128,3.0,3287.2,3286.5,3.04271]
[1737929361129,0.8106,3287.1,3286.5,3.04271]
[1737929361364,0.38106,3287.0,3286.5,6.08539]
[1737929361631,0.8106,3287.1,3286.5,3.04268]
[1737929362371,0.8106,3287.1,3286.5,3.04269]
[1737929362573,0.8106,3287.1,3286.6,3.04265]
[1737929363876,0.8106,3287.1,3286.5,3.04274]
[1737929364277,0.8106,3287.6,3286.3,0.8218]
[1737929364430,0.38106,3287.5,3286.3,0.8218]
[1737929364826,0.38106,3287.5,3287.1,3.04219]
[1737929365077,0.8106,3287.6,3287.1,3.04219]
[1737929365367,0.8106,3286.8,3285.4,0.8218]
[1737929365667,0.03804051,3286.7,3286.0,3.04314]
[1737929365867,0.8106,3286.8,3286.2,3.04298]
[1737929366240,0.8106,3286.8,3286.3,3.04293]
[1737929366440,0.8106,3286.8,3286.0,3.04314]
[1737929366641,0.03803748,3286.7,3285.4,0.8218]
[1737929366842,3.04272,3286.6,3285.4,0.8218]
[1737929367166,3.04315,3286.1,3284.9,0.8011]
[1737929367466,3.0,3286.2,3285.3,3.04377]
[1737929367768,3.87467,3286.4,3285.3,3.04381]
[1737929367975,0.8318,3286.4,3285.8,3.04338]
[1737929369454,0.8318,3286.4,3286.0,3.04319]
[1737929369835,0.8318,3286.4,3285.8,3.04338]
[1737929370289,0.8318,3286.4,3285.9,3.04328]
[1737929370866,0.8318,3286.4,3286.0,3.0432]
[1737929371165,0.8318,3286.4,3285.8,3.04338]
[1737929371537,0.38318,3286.3,3285.8,3.04338]
[1737929371730,0.8318,3286.4,3286.0,3.0432]
[1737929371933,0.8318,3286.4,3285.8,3.04338]
[1737929372378,0.8318,3286.4,3285.9,3.04327]
[1737929373687,0.8318,3286.4,3286.0,3.0432]
[1737929374489,0.8318,3286.4,3285.9,3.04328]
[1737929377264,0.8318,3286.4,3285.8,3.04332]
[1737929377494,3.04302,3286.2,3285.3,3.04378]
[1737929377695,0.3461492,3286.1,3285.3,3.04378]
[1737929377999,0.3461492,3286.1,3285.5,3.04363]
[1737929378000,0.03804331,3286.1,3285.5,3.04363]
[1737929378319,0.8318,3286.4,3285.7,3.04346]
[1737929378625,0.8318,3286.4,3285.6,3.04358]
[1737929378626,0.8318,3286.4,3285.8,3.04337]
[1737929378762,0.8318,3286.4,3285.6,3.04358]
[1737929379092,3.91271166,3286.4,3285.6,3.04358]
[1737929379298,3.80064445,3286.3,3285.6,3.04358]
[1737929380063,0.83014165,3286.2,3285.6,3.04358]
[1737929380900,3.0432,3286.1,3285.5,3.04361]
[1737929382215,0.7921,3286.2,3285.5,3.04361]
[1737929382374,0.7921,3286.2,3285.6,3.04358]
[1737929382569,0.45928145,3286.1,3285.6,3.04358]
[1737929385322,0.45928145,3286.1,3285.4,3.04376]
[1737929385481,0.7921,3286.2,3285.2,3.04386]
[1737929385669,3.04312,3286.1,3285.4,3.04374]
[1737929386081,0.7921,3286.2,3285.4,3.04374]
[1737929386273,3.8352,3286.2,3285.4,3.04374]
[1737929386915,0.7921,3286.2,3285.6,3.04357]
[1737929387291,0.7921,3286.2,3285.8,3.04332]
[1737929388015,0.7921,3286.2,3286.1,3.04312]
[1737929388191,3.0,3286.6,3286.1,3.04312]
[1737929388192,0.8162,3286.5,3286.1,3.04312]
[1737929388506,0.8162,3286.5,3285.9,6.08645]
[1737929388681,0.38162,3286.4,3285.9,6.08645]
[1737929390391,0.38162,3286.4,3286.0,3.0432]
[1737929391781,0.8162,3286.5,3286.1,3.04308]
[1737929392108,0.03803571,3286.4,3285.9,3.04328]
[1737929392508,0.8162,3286.5,3285.9,3.04328]
[1737929392897,0.8162,3286.5,3286.0,3.0432]
[1737929393117,1.50733211,3286.5,3286.0,3.0432]
[1737929395225,3.09512108,3286.4,3286.0,3.0432]
[1737929397716,3.09512108,3286.4,3285.8,3.04332]
[1737929398626,3.09512108,3286.4,3285.9,3.04328]
[1737929402597,3.09512108,3286.3,3285.9,3.04328]
[1737929403731,3.09512108,3286.3,3286.2,3.04302]
[1737929405210,3.09512108,3286.3,3285.6,0.7824]
[1737929405211,3.87662108,3286.3,3285.6,0.7824]
[1737929405414,3.87662108,3286.3,3285.3,3.81505]
[1737929405649,3.87662108,3286.3,3285.6,3.04357]
[1737929405801,0.8893871,3286.2,3285.6,3.04357]
[1737929407221,0.8893871,3286.2,3285.3,0.7712]
[1737929407222,3.04312,3286.1,3285.3,0.7712]
[1737929407404,0.8893871,3286.2,3285.3,3.81498]
[1737929407602,0.8893871,3286.2,3285.3,0.7712]
[1737929407844,0.8893871,3286.2,3285.5,3.04367]
[1737929408215,0.8893871,3286.2,3285.6,0.1]
[1737929408714,3.82444,3286.3,3285.6,0.1]
[1737929411735,1.85783693,3286.2,3285.6,0.1]
[1737929414558,1.85783693,3286.2,3285.7,3.04346]
[1737929414764,1.85783693,3286.1,3285.6,0.1]
[1737929415865,1.85783693,3286.1,3285.6,3.14357]
[1737929416831,1.85783693,3286.1,3285.6,0.414357]
[1737929417144,1.85783693,3286.2,3285.9,3.0433]
[1737929417345,1.85783693,3286.2,3285.8,3.04332]
[1737929417666,0.7505,3286.0,3285.6,0.1]
[1737929420281,0.7505,3286.0,3285.8,3.04339]
[1737929420580,1.85783693,3286.1,3285.8,3.04333]
[1737929422744,1.85783693,3286.1,3286.0,3.04321]
[1737929423083,1.85783693,3286.4,3286.0,3.04321]
[1737929423282,1.85783693,3286.4,3286.2,3.04295]
[1737929423956,1.85783693,3286.4,3286.0,3.04321]
[1737929424562,0.84733722,3286.3,3285.6,0.1]
[1737929424762,3.04303,3286.2,3285.6,0.1]
[1737929425067,4.03808369,3286.3,3285.6,0.1]
[1737929430508,1.85783693,3286.1,3285.6,0.1]
[1737929432210,1.85783693,3286.1,3285.7,0.05244947]
[1737929433203,1.85783693,3286.2,3285.7,0.05244947]
[1737929433408,0.8186,3286.0,3285.7,0.05244947]
[1737929435426,3.08138581,3285.9,3285.7,0.05244947]
[1737929435614,3.8186,3285.8,3285.7,0.05244947]
[1737929435814,6.86199,3285.8,3285.7,0.05244947]
[1737929436021,8.03830669,3285.8,3285.7,0.05244947]
[1737929436339,6.04349,3285.7,3285.6,0.1]
[1737929436646,7.80640519,3285.7,3285.6,0.1]
[1737929436941,3.04439,3284.8,3283.9,3.04513]
[1737929437238,3.427269,3284.7,3283.9,3.04513]
[1737929437439,0.7841,3284.6,3283.9,3.04513]
[1737929438146,0.7841,3284.6,3284.1,3.04493]
[1737929438347,0.7841,3284.9,3284.2,3.04488]
[1737929438552,0.7841,3285.6,3285.0,3.04408]
[1737929438748,0.7841,3285.6,3285.1,3.04404]
[1737929439052,0.7841,3285.6,3285.0,3.04406]
[1737929439944,0.0380514,3285.5,3285.0,3.04406]
[1737929440447,0.03805139,3285.5,3285.0,3.04406]
[1737929440620,0.38221514,3285.5,3285.0,3.04406]
[1737929440822,0.03805138,3285.4,3284.4,0.8107]
[1737929441134,0.03805138,3285.4,3284.4,3.04464]
[1737929441135,0.7841,3285.1,3284.4,3.04464]
[1737929441312,0.7841,3285.1,3284.5,3.04458]
[1737929441513,0.37841,3285.0,3284.5,3.04458]
[1737929441968,0.37841,3285.0,3284.2,3.04485]
[1737929441969,0.37841,3285.0,3284.3,3.0447]
[1737929442265,0.37841,3285.0,3284.4,3.04465]
[1737929442628,0.7841,3285.1,3283.9,0.56556624]
[1737929442835,0.8174,3285.6,3285.0,3.04414]
[1737929444075,0.8174,3285.6,3285.1,3.04397]
[1737929444369,0.38174,3285.5,3285.1,3.04397]
[1737929444534,0.38174,3285.5,3285.0,3.04414]
[1737929444734,0.8174,3285.6,3285.0,3.04414]